Cogmind - Beta 15 @@@ ROGUE MODE // 2025.07.03 @ 13:42:58 Player: Stump Result: Destroyed self via exploding Fusion Modulator Performance ------------- Evolutions (0) 0 Regions Visited (1) 200 Robots Destroyed (21) 105 Value Destroyed (524) 524 Prototype IDs (0) 0 Alien Tech Used (0) 0 Bonus (0) 0 TOTAL SCORE: 829 Bonus ------- None Cogmind --------- Core Integrity 0/250 Matter 140/300 Energy 70/100 System Corruption 0% Temperature Cool (31) Movement Rolling (115) Ox1 Location -10/Materials Parts ------- > --- POWER (1) -------- (None) > --- PROPULSION (2) --- Compact Wheel > --- UTILITY (2) ------ Large Storage Unit > --- WEAPON (2) ------- Assault Rifle > --- INVENTORY (15) --- Aluminum Leg Medium Storage Unit Datajack Peak State ------------ > --- POWER ------------ Ion Engine > --- PROPULSION ------- Compact Wheel Compact Wheel > --- UTILITY ---------- Large Storage Unit Signal Interpreter > --- WEAPON ----------- EM Pulse Gun Assault Rifle > --- INVENTORY -------- Light Ion Engine Aluminum Leg Medium Storage Unit Hacking Suite Tractor Beam Assault Rifle Grenade Launcher Datajack [Rating: 8] Favorites ----------- Power Ion Engine Engine Ion Engine Propulsion Wheel Treads Light Treads Leg Aluminum Leg Wheel Wheel Utility Signal Interpreter Device Tractor Beam Storage Large Storage Unit Processor Signal Interpreter Weapon Assault Rifle Energy Gun EM Pulse Gun Ballistic Gun Assault Rifle Launcher Grenade Launcher Special Melee Weapon Datajack Build | -11 -10 ------- Run | Yrd Mat Slots Evolved . | . . Power . | . . Propulsion . | . . Utility . | . . Weapon . | . . Parts Attached 25 | 9 16 Power 2 | 2 . Engine 2 | 2 . Core . | . . Reactor . | . . Propulsion 10 | 4 6 Treads 2 | . 2 Leg 3 | 2 1 Wheel 5 | 2 3 Hover . | . . Flight . | . . Utility 6 | . 6 Device 2 | . 2 Storage 2 | . 2 Processor 2 | . 2 Hackware . | . . Protection . | . . Artifact . | . . Weapon 7 | 3 4 Energy Gun 2 | 2 . Energy Cannon . | . . Ballistic Gun 2 | 1 1 Ballistic Cannon . | . . Launcher 2 | . 2 Special Weapon . | . . Impact Weapon . | . . Slashing Weapon . | . . Piercing Weapon . | . . Special Melee Weapon 1 | . 1 Unidentified Prototypes . | . . Parts Lost 9 | . 9 Power 2 | . 2 Propulsion 2 | . 2 Utility 1 | . 1 Weapon 4 | . 4 Highest Loss Streak 7 | . 7 To Critical Strikes . | . . Average Backups 4 | 2 5 Power . | . . Propulsion 1 | 1 1 Utility 1 | . 1 Weapon 1 | . 1 Tool/Special . | . . Unused Backups 1 | . 1 Power . | . . Propulsion . | . . Utility 1 | . 1 Weapon . | . . Tool/Special . | . . Average Slot Usage (%) 97 | . 97 Engine 13 | . 13 Treads 2 | . 2 Leg 3 | . 3 Wheel 21 | . 21 Device 6 | . 6 Storage 4 | . 4 Processor 15 | . 15 Energy Gun 4 | . 4 Ballistic Gun 15 | . 15 Launcher 8 | . 8 Peak Build Rating 8 | 5 8 Average Rating 6 | 4 6 On Entrance 2 | . 5 Naked Turns . | . . Heaviest Build 30 | 8 30 Greatest Support 40 | 20 40 Greatest Overweight (x) . | . . Average Overweight (x) . | . . Largest Inventory Capacity 15 | 5 15 Average Capacity 7 | 5 8 Most Carried 8 | 5 8 Average Carried 4 | 2 5 Final Capacity 15 | 5 15 Final Carried 4 | 4 3 Class Distribution -------------------- 100% | Mutant Dominant Class ---------------- Mutant | -10/Materials Resources | -11 -10 ----------- Run | Yrd Mat Matter Collected 600 | 290 310 Remotely 261 | . 261 Salvage Created 372 | 66 306 Parts 27 | 2 25 Haulers Intercepted 1 | . 1 Recyclers Shooed 1 | . 1 Parts Field Recycled . | . . Retrieved Matter . | . . Parts Self-Destructed . | . . Prevented . | . . Kills | -11 -10 ------- Run | Yrd Mat Combat Hostiles Destroyed 14 | 1 13 Guns 4 | 1 3 AOE 10 | . 10 Classes Destroyed 7 | 2 5 Worker 2 | 1 1 Builder 1 | . 1 Hauler 1 | . 1 Operator 1 | . 1 Watcher 2 | . 2 Swarmer 3 | . 3 Grunt 11 | 1 10 Best Kill Streak 6 | 2 6 Combat Bots Only 6 | 1 6 Max Kills in Single Turn 3 | 1 3 Gunslinging . | . . Exploded 3 | . 3 Melee . | . . Uniques/NPCs Destroyed . | . . Combat | -11 -10 -------- Run | Yrd Mat Hostile Shots Fired 63 | 1 62 Missed 14 | . 14 Hits 49 | 1 48 Projectile 49 | 1 48 Critical Strikes 1 | . 1 Damage Taken 920 | 10 910 Core 291 | . 291 Absorbed by Shields . | . . Regen/Repaired (Parts) 2 | . 2 Core Remaining (%) 100 | 100 . Volleys Fired 30 | 2 28 Largest 2 | 2 2 Hottest 80 | 80 60 Shots Fired 57 | 4 53 Gun 43 | 4 39 Cannon . | . . Launcher 14 | . 14 Special . | . . Kinetic 35 | . 35 Thermal 2 | 2 . Explosive 14 | . 14 Electromagnetic 6 | 2 4 Robot Hit Streak 7 | 2 7 Robot Miss Streak 2 | 1 2 Penetration Max . | . . Secondary Targets . | . . Shots Hit Robots 34 | 2 32 Core Hits 41 | 2 39 Critical Kills . | . . Critical Parts Destroyed . | . . Critical Strikes . | . . Melee Attacks 1 | . 1 Impact . | . . Slashing . | . . Piercing . | . . Sneak Attacks . | . . Combat Hostiles . | . . Follow-up Attacks . | . . Damage Inflicted 1914 | 30 1884 Guns 300 | 30 270 Cannons . | . . Explosions 1614 | . 1614 Melee . | . . Ramming . | . . Kinetic 242 | . 242 Thermal 353 | . 353 Explosive 1261 | . 1261 Electromagnetic 58 | 30 28 Impact . | . . Slashing . | . . Piercing . | . . Highest Corruption . | . . Average Corruption . | . . Corruption Purged . | . . Corruption Blocked . | . . Overload Shots . | . . Overflow Damage 205 | . 205 Projectiles . | . . Explosions 205 | . 205 Melee . | . . Knockbacks . | . . Impact . | . . Kinetic . | . . Secondary . | . . Self-Inflicted Damage 319 | . 319 Shots 10 | . 10 Rammed . | . . Targets Rammed . | . . Kicked . | . . Crushed . | . . Highest Temperature 46 | 24 46 Average Temperature 14 | 13 14 Received Heat Transfer 354 | 6 348 Siege Activations . | . . Martial Activations . | . . Shielding Activations . | . . Robots Disrupted . | . . Combat Hostiles . | . . Robots Corrupted . | . . Combat Hostiles . | . . Parts Fried . | . . Impact Corruptions . | . . Robots Melted . | . . Combat Hostiles . | . . Parts Melted . | . . Heat Transferred 250 | . 250 Parts Sabotaged . | . . Parts Stolen . | . . Parts Stripped . | . . Power Chain Reactions . | . . Alert | -11 -10 ------- Run | Yrd Mat Maximum Alert Level . | . . Low Security (%) 100 | 100 100 Level 1 . | . . Level 2 . | . . Level 3 . | . . Level 4 . | . . Level 5 . | . . High Security . | . . Max Security . | . . Peak Influence 162 | 20 162 Initial . | . . Average 61 | 2 73 Influence Increases 526 | 25 501 Destroy 0b10 Robot/C 280 | 20 260 Destroy 0b10 Robot/NC 35 | 5 30 Destroy Leader 66 | . 66 Successful Hack 9 | . 9 Disable Machine 75 | . 75 Destroy Structure 61 | . 61 Influence Decreases 400 | 25 375 Time Decay 300 | 25 275 Lost Part 90 | . 90 Purge Threat 10 | . 10 Squads Dispatched 5 | . 5 Investigation 2 | . 2 Extermination . | . . Reinforcement 3 | . 3 Assault . | . . Garrison . | . . Intercept . | . . Searches Triggered . | . . Construction Impeded . | . . Haulers Reinforced . | . . Active Scanning Responses . | . . Cargo Convoy Interrupts . | . . Stealth | -11 -10 --------- Run | Yrd Mat Distress Signals . | . . Communications Jammed . | . . Distress Signals . | . . Times Spotted 23 | 1 22 Peak Tracking Total 7 | 1 7 Tactical Retreats . | . . Traps | -11 -10 ------- Run | Yrd Mat Traps Triggered . | . . Indirectly . | . . Trap Hack Attempts . | . . Triggered . | . . Disarmed . | . . Reprogrammed . | . . Reused . | . . Traps Extracted . | . . Installed . | . . Triggered . | . . Machines | -11 -10 ---------- Run | Yrd Mat Machines Disabled 5 | . 5 Max in Single Turn 3 | . 3 Machines Repaired . | . . Machines Dismantled . | . . Machines Sabotaged . | . . Overloaded Fab Kills . | . . Hacking | -11 -10 --------- Run | Yrd Mat Machines Accessed 4 | . 4 Terminals 3 | . 3 Fabricators . | . . Repair Stations 1 | . 1 Recycling Units . | . . Scanalyzers . | . . Garrison Access . | . . Total Hacks 16 | . 16 Successful 12 | . 12 Failed 4 | . 4 Catastrophic . | . . Database Lockouts . | . . Manual . | . . Terminals 12 | . 12 Fabricators . | . . Repair Stations 4 | . 4 Recycling Units . | . . Scanalyzers . | . . Garrison Access . | . . Terminal Hacks 9 | . 9 Record 5 | . 5 Alert Level 1 | . 1 Unreport Threat 1 | . 1 Hauler Manifests 1 | . 1 Zone Layout 1 | . 1 Fabricator Hacks . | . . Repair Station Hacks 3 | . 3 Scan Component 2 | . 2 Repair 1 | . 1 Recycling Unit Hacks . | . . Scanalyzer . | . . Garrison Access Hacks . | . . Unauthorized Hacks . | . . Terminals . | . . Fabricators . | . . Repair Stations . | . . Recycling Units . | . . Scanalyzers . | . . Garrison Access . | . . Data Cores Recovered . | . . Used . | . . Hacking Detections 4 | . 4 Full Trace Events 4 | . 4 Feedback Events . | . . Feedback Blocked . | . . Robot Schematics Acquired . | . . Robots Built . | . . Authchips . | . . Time . | . . Total Robot Build Rating . | . . Part Schematics Acquired . | . . Parts Built . | . . Authchips . | . . Time . | . . Total Part Build Rating . | . . Parts Repaired 1 | . 1 Time 38 | . 38 Parts Recycled . | . . Recycled Matter . | . . Retrieved Matter . | . . Retrieved Components . | . . Parts Scanalyzed . | . . Part Schematics Acquired . | . . Parts Damaged . | . . Bothacking | -11 -10 ------------ Run | Yrd Mat Used RIF Installer . | . . Robots Hacked 1 | . 1 Non-combat . | . . Combat 1 | . 1 Robot Hacks Applied 1 | . 1 parse_system 1 | . 1 Relay Couplers Released . | . . Fabnet Peak Effective % . | . . Robots Rewired . | . . Allies Hacked . | . . Hacks Repelled . | . . Allies | -11 -10 -------- Run | Yrd Mat Total Allies . | . . Largest Group . | . . Highest-Rated Group . | . . Highest-Rated Ally . | . . Total Orders . | . . Ally Attacks . | . . Total Damage . | . . Kills . | . . Allies Corrupted . | . . Allies Melted . | . . Intel | -11 -10 ------- Run | Yrd Mat Active Infowar (turns) . | . . Robot Analysis Total . | . . Derelict Logs Recovered . | . . Drone Launches . | . . Drone Recoveries . | . . Exploration | -11 -10 ------------- Run | Yrd Mat Turns Passed 769 | 139 630 Spaces Moved 535 | 86 449 Core 17 | 17 . Treads 31 | . 31 Legs 62 | 7 55 Wheels 425 | 62 363 Hover . | . . Flight . | . . Fastest Speed 50 | 50 80 Average Speed 95 | 77 99 Slowest Speed 160 | 120 160 Overloaded Moves . | . . Propulsion Burnouts . | . . Robots Hopped . | . . Potential Cave-ins . | . . Cave-ins Triggered . | . . Exploration Rate (%) 30 | 5 55 Regions Visited 1 Branch Regions . Pre-discovered Areas . | . . Known Exits Taken . | . . Unknown Exits Taken 1 | 1 . Scrap Searched . | . . Spaces Dug . | . . Terrain Destroyed 58 | . 58 Melee . | . . Projectile . | . . AOE 58 | . 58 Terrain Rammed . | . . Walls Destroyed . | . . Machines Disabled . | . . Actions | -11 -10 --------- Run | Yrd Mat Total 727 | 152 575 Wait 89 | 47 42 Move 534 | 85 449 Hop . | . . Pick Up 25 | 9 16 Fast Attach 4 | . 4 Attach 12 | 5 7 Detach 1 | . 1 Swap 20 | 4 16 Drop 11 | . 11 Fire 30 | 2 28 Melee 1 | . 1 Ram . | . . Kick . | . . Crush . | . . Escape Stasis . | . . Rewire . | . . Trap . | . . Miscellaneous . | . . Route ------- -11/Scrapyard -10/Materials (discovered 3 exits: *Mat x2 / [*Sub]) History --------- Turn | Location | Event 2 | -11/Scrapyard | Met Revision 17 68 | -11/Scrapyard | Discovered new exit (range 8) 140 | -11/Scrapyard | Entered Materials 195 | -10/Materials | Discovered new exit (range 9) 203 | -10/Materials | Identified exit to Materials 253 | -10/Materials | Discovered new exit (range 6) 353 | -10/Materials | Build established: Mutant 560 | -10/Materials | Discovered exit to Materials (range 4) 744 | -10/Materials | Core integrity fell below 50% 763 | -10/Materials | Core integrity fell below 20% 764 | -10/Materials | Repaired Hacking Suite 770 | -10/Materials | Destroyed self via exploding Fusion Modulator Last Messages --------------- U-05 Engineer lays Concrete. K-01 Serf collects debris. Lgt. Ion Engine destroyed. U-05 Engineer lays Concrete. Com. Wheel destroyed. Fusion Modulator explodes. The unstable cave ceiling collapses. Destroyed Welding Torch. Destroyed Lgt. Ion Engine. Terminal disabled. Destroyed Lgt. Ion Engine. Terminal disabled. G-34 Mercenary destroyed. Destroyed Wheel. Destroyed Welding Torch. EM Pulse Gun destroyed. Destroyed EM Pulse Gun. Tractor Beam destroyed. Destroyed Tractor Beam. [Achievement: First Step to Greatness] Map ----- +----------------------------------------------------+ | | | | | | | | | ??????????????????????????????????????????????? | | ??????????????????????????????????????????????? | | ??????????????????????????????????????????????? | | ??????????????????????????????????????????????? | | ??????????????????????????????????????????????? | | ??????????????????????????????????????????????? | | ??????????????????????????????????????????????? | | ????##### "Y #?????# # ??????????? | | ????# # "" #?????# # ??????????? | | ###?# # #?????# # ##??????????? | | ?# # #?????# # ##??????????? | | # ###+####?????# + ##??????????? | | # #?????# # ##??????????? | | + #?###?########### ##??????????? | | ?# ###T######;;####o ##+????????? | | ??# rr ?????????? | | ???# o ??????????? | | ????# """ """ """ #??????????? | | ????# """ """ """ u * #+#######??????? | | ##### """ """ """ ug * #??????? | | k gg k / #??????? | | ##### m@ ** #??????? | | #???# #######+##### T #"!" g= """?????????? | | #???# #?# ######"R" = """"?????????? | | #???# #?# """" #????#""" """??????????? | | ##### #?# """" #????### # """??????????? | | ## #?# """" #??????### # ""??????????? | | ## #?# #????????# # ??????????? | | ## #?# """" #????????# #######?????????? | | <# #?# """" #????????# #???????????????? | | ## #?# """" #????????# #???????????????? | | ## #?# #????????# #???????????????? | | ##### ##################### #???????????????? | | #???# ## # # #???????????????? | | #??## ## """ """ # """ # #???????????????? | | #??# # """ """ # """ # ######??????????? | | #??# + """ """ # """ # ??????????? | | #??# # """ """ # + ??????????? | | #??# # """ """ #????????????????????????????? | | #??# # #????????????????????????????? | | #??# # #????????????????????????????? | | #### ###########????????????????????????????? | | ########???????????????????????????????? | | # #???????????????????????????????? | | # #???????????????????????????????? | | #### + ! #???????????????????????????????? | +----------------------------------------------------+ Best States ------------- Heat Dissipation 25 Energy Generation 10 Energy Capacity 250 Matter Stores 300 Matter Capacity 300 Sight Range 16 Terrain Scan Density 10 Evasion (%) 55 Recoil Reduction 2 Item Schematics ----------------- None Robot Schematics ------------------ None Fabricated ------------ Nothing Repaired ---------- Hacking Suite | 80% | -10/Materials Alien Tech Used ----------------- None Achievements -------------- Everything Is Under Control First Step to Greatness Loot Pinata One Hack Too Far Part-time Mechanic Shopping List Uninvited Guest Use The Force Challenges ------------ None Game ------ Seed DecoderFissionRailgun Manual? 0 Play Time 00:32:42 Cumulative 0.5 hours Start 2025.07.03 @ 13:05:04 End 2025.07.03 @ 13:42:58 Sessions 1 Manual Loads 0 Difficulty Rogue Special Mode None Game No. 1 Rogue 1 Adventurer 0 Explorer 0 Win Type - Total 0 Types 0/0/0/0/0/0/0/0/0/0 Lore% 0 Gallery% 1 Achievement% 3 Wizard Run 0 Options --------- Layout 1 ASCII 0 Keyboard 0 Movement Mouse Keybinds 0 Fullscreen 1 Font 24/Smallcaps Map View 50x35 Zoom Use 0% Tactical HUD 0 Map Filters NONE Filters NONE Steam 1 RUN: e4fff5f5-76ff-483a-931a-5fd10bd9f1c9